[Event "XII Cracow ICC-B 2024"]
[Site "Krakow"]
[Date "2024.06.23"]
[Round "3.7"]
[White "Mytych, Rafal"]
[Black "Skomial, Mateusz"]
[Result "1-0"]
[ECO "A14"]
[WhiteElo "1878"]
[BlackElo "2083"]
[Annotator "RC"]
[PlyCount "109"]
[EventDate "2024.06.20"]
[EventType "swiss"]
[EventCountry "POL"]
[SourceTitle "playchess.com"]
[Source "ChessBase"]
[SourceQuality "1"]
[TimeControl "40/5400+30:1800+30"]

1. Nf3 {[%emt 0:00:18]} d5 {[%emt 0:00:05]} 2. g3 {[%emt 0:00:05]} Nf6 {[%emt 0:00:26]} 3. Bg2 {[%emt 0:00:12]} e6 {[%emt 0:00:17]} 4. O-O {[%emt 0:00:18]} Be7 {[%emt 0:00:17]} 5. c4 {[%emt 0:01:04]} O-O {[%emt 0:00:08]} 6. d3 {[%emt 0:00:55]} c5 {[%emt 0:00:58]} 7. Nc3 {[%emt 0:15:13]} d4 {[%emt 0:03:21]} 8. Ne4 {[%emt 0:01:16]} Nc6 {[%emt 0:01:05]} 9. Qc2 {[%emt 0:08:41]} Nxe4 {[%emt 0:01:14]} 10. dxe4 {[%emt 0:00:02]} e5 {[%emt 0:00:24]} 11. Ne1 {[%emt 0:03:58]} Be6 {[%emt 0:02:10]} 12. f4 {[%emt 0:04:14]} f6 {[%emt 0:00:07]} 13. b3 {[%emt 0:07:15]} Rc8 {[%emt 0:02:43]} 14. Nd3 {[%emt 0:04:43]} Qd6 {[%emt 0:02:46]} 15. Ba3 {[%emt 0:02:14]} Nb4 {[%emt 0:01:14]} 16. Qd2 {[%emt 0:07:08]} Nxd3 {[%emt 0:04:04]} 17. exd3 {[%emt 0:00:22]} Qa6 {[%emt 0:00:41]} 18. Bb2 {[%emt 0:03:37]} b5 {[%emt 0:00:05]} 19. f5 {[%emt 0:07:15]} Bf7 {[%emt 0:02:24]} 20. Bf3 {[%emt 0:02:22]} bxc4 {[%emt 0:00:57]} 21. bxc4 {[%emt 0:00:52]} Rb8 {[%emt 0:00:22]} 22. Rfb1 {[%emt 0:00:32]} Rb7 {[%emt 0:00:39]} 23. Bc1 {[%emt 0:01:22]} Rfb8 {[%emt 0:00:14]} 24. Qc2 {[%emt 0:01:05]} Be8 {[%emt 0:00:42]} 25. Rxb7 {[%emt 0:01:42]} Rxb7 {[%emt 0:00:06]} 26. Bd1 {[%emt 0:01:24]} Bd8 {[%emt 0:00:53]} 27. Bd2 {[%emt 0:02:11]} Ba5 {[%emt 0:01:32]} 28. a3 {[%emt 0:06:50]} Kf8 {[%emt 0:02:37]} 29. Kf1 {[%emt 0:01:33]} Qb6 {[%emt 0:01:48]} 30. Ra2 {[%emt 0:04:35]} Bc6 {[%emt 0:10:13]} 31. g4 {[%emt 0:03:18]} h6 {[%emt 0:19:38]} 32. Ke2 {[%emt 0:00:14]} Ke7 {[%emt 0:02:49]} 33. h4 {[%emt 0:02:04]} Rb8 {[%emt 0:01:58]} 34. h5 {[%emt 0:01:49]} Rb7 {[%emt 0:08:54]} 35. Ke1 {[%emt 0:00:33]} Kd6 {[%emt 0:01:13]} 36. Ke2 {[%emt 0:00:21]} Bd7 {[%emt 0:02:27]} 37. Ke1 {[%emt 0:01:45]} Bxd2+ {[%emt 0:02:47]} 38. Qxd2 {[%emt 0:00:01]} Qb1 {[%emt 0:00:28]} 39. Ke2 {[%emt 0:00:30]} Ba4 {[%emt 0:08:53]} 40. Bxa4 {[%emt 0:02:17]} Qg1 {[%emt 0:00:06]} 41. Bc2 {[%emt 0:14:20]} Qg2+ {[%emt 0:07:00]} 42. Kd1 {[%emt 0:03:43]} Qxg4+ {[%emt 0:00:31]} 43. Kc1 {[%emt 0:01:21]} Qxh5 {[%emt 0:01:07]} 44. Rb2 {[%emt 0:01:00]} Rxb2 {[%emt 0:04:20]} 45. Kxb2 {[%emt 0:00:07]} Qf7 {[%emt 0:00:03]} 46. Qa5 {[%emt 0:01:38]} Qb7+ {[%emt 0:01:04]} 47. Ka2 {[%emt 0:03:25]} h5 {[%emt 0:01:03]} 48. Qd8+ {[%emt 0:01:30]} Qd7 {[%emt 0:00:05]} 49. Qf8+ {[%emt 0:01:23]} Qe7 {[%emt 0:00:08]} 50. Qh8 {[%emt 0:01:17]} Qf7 {[%emt 0:00:06]} 51. Bd1 {[%emt 0:00:44]} h4 {[%emt 0:01:18]} 52. Qxh4 {[%emt 0:01:19]} g6 {[%emt 0:00:10]} 53. Qh8 {[%emt 0:03:19]} gxf5 {[%emt 0:00:07]} 54. exf5 {[%emt 0:00:27]} Kc7 {[%emt 0:01:11]} 55. Bf3 {[%emt 0:01:37]} 1-0